[Event "Live Chess"]
[Site "Chess.com"]
[Date "2023.09.16"]
[Round "-"]
[White "kslusk"]
[Black "Torugomilho11"]
[Result "1-0"]
[WhiteElo "851"]
[BlackElo "1123"]
[TimeControl "900+5"]
[EndTime "6:54:36 PDT"]
[Termination "kslusk venceu por desistência"]

1. e4 {[%clk 0:15:03.8]} 1... e5 {[%clk 0:15:03.9]} 2. Nf3 {[%clk 0:15:07.4]}
2... Nc6 {[%clk 0:15:07.5]} 3. Bc4 {[%clk 0:15:10.8]} 3... Bc5 {[%clk
0:15:10.3]} 4. b4 {[%clk 0:15:14]} 4... Bxb4 {[%clk 0:14:47.5]} 5. c3 {[%clk
0:15:17.6]} 5... Bc5 {[%clk 0:14:45.5]} 6. d4 {[%clk 0:15:21.8]} 6... exd4
{[%clk 0:14:49]} 7. cxd4 {[%clk 0:15:25.9]} 7... Bb4+ {[%clk 0:14:48.4]} 8. Bd2
{[%clk 0:15:28.9]} 8... Bxd2+ {[%clk 0:14:41.5]} 9. Qxd2 {[%clk 0:15:31.9]} 9...
d6 {[%clk 0:14:11.1]} 10. d5 {[%clk 0:15:25.3]} 10... Ne5 {[%clk 0:14:07.6]} 11.
Nxe5 {[%clk 0:15:27.6]} 11... dxe5 {[%clk 0:14:11.1]} 12. Bb5+ {[%clk
0:15:31.1]} 12... Bd7 {[%clk 0:14:11.6]} 13. Nc3 {[%clk 0:15:23.5]} 13... Bxb5
{[%clk 0:14:07.6]} 14. Nxb5 {[%clk 0:15:27.1]} 14... a6 {[%clk 0:14:11.9]} 15.
Nc3 {[%clk 0:15:17.7]} 15... Nf6 {[%clk 0:14:15.1]} 16. Rc1 {[%clk 0:15:19.7]}
16... O-O {[%clk 0:14:05.9]} 17. O-O {[%clk 0:15:19.5]} 17... c6 {[%clk
0:13:56.4]} 18. Rfd1 {[%clk 0:15:11.3]} 18... cxd5 {[%clk 0:13:54.1]} 19. Nxd5
{[%clk 0:15:08.3]} 19... Nxd5 {[%clk 0:13:57.6]} 20. exd5 {[%clk 0:15:11.2]}
20... Qd6 {[%clk 0:13:54.3]} 21. Re1 {[%clk 0:14:43]} 21... Rad8 {[%clk
0:13:39.2]} 22. Rcd1 {[%clk 0:14:36.8]} 22... Rd7 {[%clk 0:13:20.7]} 23. f4
{[%clk 0:14:26.1]} 23... exf4 {[%clk 0:13:12.4]} 24. Qd4 {[%clk 0:14:27.9]}
24... Qf6 {[%clk 0:12:40.3]} 25. Qxf6 {[%clk 0:14:25.8]} 25... gxf6 {[%clk
0:12:44.1]} 26. Rf1 {[%clk 0:14:29.6]} 26... Rfd8 {[%clk 0:12:26.5]} 27. Rxf4
{[%clk 0:14:33]} 27... Rxd5 {[%clk 0:12:22.8]} 28. Rxd5 {[%clk 0:14:11]} 28...
Rxd5 {[%clk 0:12:26.4]} 29. Rxf6 {[%clk 0:14:10.2]} 29... Rd1+ {[%clk
0:12:29.7]} 30. Kf2 {[%clk 0:14:13.6]} 30... Rd2+ {[%clk 0:12:33.9]} 31. Kg3
{[%clk 0:14:16.8]} 31... Rxa2 {[%clk 0:12:37.9]} 32. Rd6 {[%clk 0:14:17.4]}
32... b5 {[%clk 0:12:38.1]} 33. Rb6 {[%clk 0:14:17.2]} 33... Kg7 {[%clk
0:12:22.6]} 34. Kf3 {[%clk 0:14:17.3]} 34... f6 {[%clk 0:12:21]} 35. h3 {[%clk
0:14:18.7]} 35... Kf7 {[%clk 0:12:08.7]} 36. Rb7+ {[%clk 0:14:17.3]} 36... Kg6
{[%clk 0:12:10.7]} 37. Rb6 {[%clk 0:14:18.1]} 37... h6 {[%clk 0:12:09.2]} 38. g4
{[%clk 0:14:21.4]} 38... Kg5 {[%clk 0:12:12.8]} 39. Kg3 {[%clk 0:14:19.2]} 39...
Ra3+ {[%clk 0:12:14.9]} 40. Kh2 {[%clk 0:14:21.5]} 40... Kh4 {[%clk 0:11:59.7]}
41. Rxf6 {[%clk 0:14:17.4]} 41... Rxh3+ {[%clk 0:12:03.3]} 42. Kg2 {[%clk
0:14:21]} 42... Kxg4 {[%clk 0:12:03.7]} 43. Rg6+ {[%clk 0:14:21.4]} 43... Kh4
{[%clk 0:12:06.8]} 44. Rxh6+ {[%clk 0:14:25]} 1-0

[Event "Live Chess"]
[Site "Chess.com"]
[Date "2023.09.16"]
[Round "-"]
[White "VIAJEMCENTRODATERRA"]
[Black "danilo655"]
[Result "1-0"]
[WhiteElo "2011"]
[BlackElo "720"]
[TimeControl "900+5"]
[EndTime "6:55:08 PDT"]
[Termination "VIAJEMCENTRODATERRA venceu por desistência"]

1. d4 {[%clk 0:15:02.7]} 1... d5 {[%clk 0:14:55.9]} 2. c4 {[%clk 0:15:07]} 2...
c6 {[%clk 0:14:52.3]} 3. cxd5 {[%clk 0:15:10.7]} 3... cxd5 {[%clk 0:14:55.2]} 4.
Nc3 {[%clk 0:15:15.1]} 4... Nf6 {[%clk 0:14:57.4]} 5. Nf3 {[%clk 0:15:19]} 5...
Bf5 {[%clk 0:14:42.4]} 6. Qb3 {[%clk 0:15:20.8]} 6... Nc6 {[%clk 0:14:37.3]} 7.
Qxb7 {[%clk 0:15:06.9]} 7... Bd7 {[%clk 0:13:29.9]} 8. Qb3 {[%clk 0:14:57.1]}
8... Rb8 {[%clk 0:13:17.8]} 9. Qd1 {[%clk 0:14:55.5]} 9... Bf5 {[%clk 0:13:10]}
10. a3 {[%clk 0:14:57.2]} 10... e6 {[%clk 0:12:59]} 11. e3 {[%clk 0:15:01.5]}
11... Ne4 {[%clk 0:12:23.8]} 12. Qa4 {[%clk 0:14:42.4]} 12... Qd7 {[%clk
0:12:09]} 13. Bb5 {[%clk 0:14:25.4]} 13... Rc8 {[%clk 0:11:02.7]} 14. Ne5 {[%clk
0:14:21.2]} 14... Qc7 {[%clk 0:09:30.7]} 15. Nxc6 {[%clk 0:14:00.1]} 15... Nd6
{[%clk 0:08:37.5]} 16. Nxa7+ {[%clk 0:13:41.5]} 16... Nxb5 {[%clk 0:08:27.5]}
17. Qxb5+ {[%clk 0:13:40.2]} 17... Qd7 {[%clk 0:07:53.6]} 18. Qxd7+ {[%clk
0:13:41.5]} 18... Kxd7 {[%clk 0:07:51.4]} 19. Nxc8 {[%clk 0:13:46.4]} 19... Kxc8
{[%clk 0:07:55.5]} 20. O-O {[%clk 0:13:50.2]} 20... Bd6 {[%clk 0:07:56.2]} 21.
b4 {[%clk 0:13:51.7]} 21... Kd7 {[%clk 0:07:48.1]} 22. Bd2 {[%clk 0:13:54.7]}
22... Rc8 {[%clk 0:07:44.1]} 23. Rfc1 {[%clk 0:13:58.4]} 23... f6 {[%clk
0:07:41.3]} 24. Nb5 {[%clk 0:14:01.1]} 24... Rb8 {[%clk 0:06:59.6]} 25. Nxd6
{[%clk 0:14:03.3]} 25... Kxd6 {[%clk 0:07:01.8]} 26. a4 {[%clk 0:14:07.8]} 26...
e5 {[%clk 0:06:52.7]} 27. a5 {[%clk 0:14:07.4]} 27... Bd7 {[%clk 0:06:37.2]} 28.
a6 {[%clk 0:14:07]} 28... Ra8 {[%clk 0:06:39.5]} 29. a7 {[%clk 0:14:10.7]} 29...
e4 {[%clk 0:06:17.7]} 30. b5 {[%clk 0:14:13.4]} 30... Bxb5 {[%clk 0:06:00.4]}
31. Rcb1 {[%clk 0:14:14.7]} 31... Kc6 {[%clk 0:06:03.1]} 32. Bb4 {[%clk
0:14:08.9]} 32... Kb6 {[%clk 0:05:55.7]} 33. Bc5+ {[%clk 0:14:10.3]} 33... Kc6
{[%clk 0:05:56.3]} 34. Rxb5 {[%clk 0:14:14.7]} 34... Kxb5 {[%clk 0:05:43.5]} 35.
Rb1+ {[%clk 0:14:16.9]} 35... Ka6 {[%clk 0:05:44]} 36. Rb8 {[%clk 0:14:21.3]}
36... Rxa7 {[%clk 0:05:45]} 37. Bxa7 {[%clk 0:14:24]} 37... Kxa7 {[%clk
0:05:48.8]} 38. Rg8 {[%clk 0:14:28.7]} 38... g5 {[%clk 0:05:43.7]} 39. Rg7+
{[%clk 0:14:30.6]} 39... Kb6 {[%clk 0:05:44.7]} 40. Rxh7 {[%clk 0:14:35.5]}
40... Kc6 {[%clk 0:05:35.6]} 41. Rh6 {[%clk 0:14:40.4]} 41... Kb5 {[%clk
0:05:25.2]} 42. Rxf6 {[%clk 0:14:44.6]} 42... Ka5 {[%clk 0:05:12.1]} 43. Rf5
{[%clk 0:14:49.5]} 43... Kb5 {[%clk 0:05:04.1]} 44. Rxg5 {[%clk 0:14:54.4]}
44... Kc6 {[%clk 0:05:04.8]} 45. h4 {[%clk 0:14:59.3]} 45... Kd6 {[%clk
0:05:03.2]} 46. h5 {[%clk 0:15:03.4]} 46... Kc6 {[%clk 0:04:55.7]} 47. Rg3
{[%clk 0:15:08.3]} 47... Kd6 {[%clk 0:04:54.7]} 48. h6 {[%clk 0:15:13.2]} 48...
Kc6 {[%clk 0:04:50.2]} 49. h7 {[%clk 0:15:18.1]} 49... Kd6 {[%clk 0:04:49.7]}
50. h8=Q {[%clk 0:15:23]} 50... Kc6 {[%clk 0:04:50.6]} 51. Rg7 {[%clk
0:15:25.9]} 51... Kd6 {[%clk 0:04:42.3]} 52. Qd8+ {[%clk 0:15:25.5]} 52... Kc6
{[%clk 0:04:37.1]} 53. Rc7+ {[%clk 0:15:29.7]} 1-0

[Event "Live Chess"]
[Site "Chess.com"]
[Date "2023.09.16"]
[Round "-"]
[White "augustodemoraisrocha"]
[Black "zxsimon"]
[Result "1-0"]
[WhiteElo "1467"]
[BlackElo "1480"]
[TimeControl "900+5"]
[EndTime "6:55:23 PDT"]
[Termination "augustodemoraisrocha venceu por desistência"]

1. e4 {[%clk 0:15:03.2]} 1... c5 {[%clk 0:15:03.5]} 2. Nf3 {[%clk 0:15:07.5]}
2... Nc6 {[%clk 0:15:06.6]} 3. d4 {[%clk 0:15:11.9]} 3... cxd4 {[%clk
0:15:10.9]} 4. Nxd4 {[%clk 0:15:15.8]} 4... g6 {[%clk 0:15:15.1]} 5. Nxc6 {[%clk
0:15:18.8]} 5... bxc6 {[%clk 0:15:18.9]} 6. Bd3 {[%clk 0:15:18.6]} 6... Bg7
{[%clk 0:15:22.3]} 7. Nc3 {[%clk 0:15:19.7]} 7... d6 {[%clk 0:15:26]} 8. Be3
{[%clk 0:15:21.3]} 8... Nf6 {[%clk 0:15:28.4]} 9. h3 {[%clk 0:15:24.7]} 9... c5
{[%clk 0:15:30.9]} 10. Qd2 {[%clk 0:15:24.5]} 10... Rb8 {[%clk 0:15:32.8]} 11.
Rb1 {[%clk 0:15:27.7]} 11... Be6 {[%clk 0:15:27.5]} 12. a3 {[%clk 0:15:14.8]}
12... c4 {[%clk 0:15:20.6]} 13. Be2 {[%clk 0:15:15.5]} 13... Qd7 {[%clk
0:15:11.5]} 14. O-O {[%clk 0:14:34.7]} 14... d5 {[%clk 0:15:11.6]} 15. exd5
{[%clk 0:14:37.4]} 15... Nxd5 {[%clk 0:15:15.1]} 16. Nxd5 {[%clk 0:14:41.3]}
16... Qxd5 {[%clk 0:15:14.7]} 17. Qxd5 {[%clk 0:14:44.6]} 17... Bxd5 {[%clk
0:15:17.6]} 18. Rfd1 {[%clk 0:14:35.9]} 18... Be6 {[%clk 0:15:18.3]} 19. Bd4
{[%clk 0:14:26.1]} 19... Bxd4 {[%clk 0:15:13.6]} 20. Rxd4 {[%clk 0:14:31]} 20...
O-O {[%clk 0:15:15.4]} 21. Bxc4 {[%clk 0:14:30.3]} 21... Bxc4 {[%clk 0:15:19.1]}
22. Rxc4 {[%clk 0:14:34.5]} 22... Rfc8 {[%clk 0:15:23.1]} 23. Rxc8+ {[%clk
0:14:34.3]} 23... Rxc8 {[%clk 0:15:26.9]} 24. c3 {[%clk 0:14:34.6]} 24... e6
{[%clk 0:15:29]} 25. Rd1 {[%clk 0:14:35.6]} 25... Kf8 {[%clk 0:15:31.6]} 26. Rd7
{[%clk 0:14:38]} 26... a6 {[%clk 0:15:32.6]} 27. Ra7 {[%clk 0:14:36.9]} 27...
Rc6 {[%clk 0:15:31.1]} 28. Kf1 {[%clk 0:14:34.5]} 28... Rb6 {[%clk 0:15:32.6]}
29. b4 {[%clk 0:14:18.7]} 29... Kg7 {[%clk 0:15:33.2]} 30. c4 {[%clk 0:14:19.3]}
30... Kf6 {[%clk 0:15:29.4]} 31. c5 {[%clk 0:14:22.7]} 31... Rc6 {[%clk
0:15:33]} 32. Rb7 {[%clk 0:14:03.3]} 32... h5 {[%clk 0:14:38.6]} 33. Rb6 {[%clk
0:14:05.3]} 1-0

[Event "Live Chess"]
[Site "Chess.com"]
[Date "2023.09.16"]
[Round "-"]
[White "abaakate"]
[Black "ravypintodiniz"]
[Result "0-1"]
[WhiteElo "1931"]
[BlackElo "2029"]
[TimeControl "900+5"]
[EndTime "6:55:51 PDT"]
[Termination "ravypintodiniz venceu por desistência"]

1. d4 {[%clk 0:15:04.3]} 1... Nf6 {[%clk 0:15:02.7]} 2. c4 {[%clk 0:15:08.1]}
2... g6 {[%clk 0:15:06.9]} 3. Nc3 {[%clk 0:15:11.4]} 3... Bg7 {[%clk 0:15:11.6]}
4. e4 {[%clk 0:15:15.9]} 4... d6 {[%clk 0:15:16.1]} 5. Nf3 {[%clk 0:15:20.3]}
5... O-O {[%clk 0:15:20.5]} 6. Be2 {[%clk 0:15:24.9]} 6... e5 {[%clk 0:15:23.7]}
7. d5 {[%clk 0:15:28.7]} 7... Nbd7 {[%clk 0:15:22.6]} 8. Be3 {[%clk 0:15:19.2]}
8... h6 {[%clk 0:15:18.5]} 9. Qd2 {[%clk 0:15:08]} 9... Ng4 {[%clk 0:15:21.2]}
10. O-O {[%clk 0:14:31.7]} 10... Nxe3 {[%clk 0:15:23.9]} 11. Qxe3 {[%clk
0:14:36.6]} 11... f5 {[%clk 0:15:21.6]} 12. exf5 {[%clk 0:14:36]} 12... gxf5
{[%clk 0:15:26.5]} 13. b4 {[%clk 0:14:37.4]} 13... Nf6 {[%clk 0:15:11.3]} 14. h3
{[%clk 0:14:19.9]} 14... f4 {[%clk 0:14:37]} 15. Qd2 {[%clk 0:14:05.6]} 15... a6
{[%clk 0:14:18.8]} 16. c5 {[%clk 0:14:06.4]} 16... Qe8 {[%clk 0:14:09.6]} 17.
Bd3 {[%clk 0:13:45.8]} 17... Qh5 {[%clk 0:14:02.9]} 18. Ne4 {[%clk 0:12:24.3]}
18... Bxh3 {[%clk 0:13:28]} 19. Nxf6+ {[%clk 0:12:22.7]} 19... Bxf6 {[%clk
0:13:03.8]} 20. gxh3 {[%clk 0:12:07]} 20... Qxf3 {[%clk 0:12:53.4]} 21. Bf5
{[%clk 0:12:09.1]} 21... Qh5 {[%clk 0:12:34.7]} 22. Bg4 {[%clk 0:12:02.1]} 22...
Qg6 {[%clk 0:12:30.6]} 23. Kh2 {[%clk 0:12:04.5]} 23... e4 {[%clk 0:12:29.5]}
24. Rg1 {[%clk 0:12:01.7]} 24... Kh8 {[%clk 0:12:29.1]} 25. Be6 {[%clk
0:11:23.9]} 25... Qh5 {[%clk 0:12:19.3]} 26. Rae1 {[%clk 0:11:26]} 26... e3
{[%clk 0:10:56.3]} 27. fxe3 {[%clk 0:11:06.4]} 27... Be5 {[%clk 0:10:56.8]} 28.
Kh1 {[%clk 0:09:34.1]} 28... fxe3 {[%clk 0:10:12.2]} 29. Qxe3 {[%clk 0:08:27.9]}
29... Rf3 {[%clk 0:10:09.2]} 30. Bg4 {[%clk 0:08:28]} 30... Rxe3 {[%clk
0:10:10.6]} 31. Bxh5 {[%clk 0:08:30.8]} 31... Rxh3+ {[%clk 0:10:14.8]} 0-1

[Event "Live Chess"]
[Site "Chess.com"]
[Date "2023.09.16"]
[Round "-"]
[White "dani_reitas"]
[Black "mary260210"]
[Result "1-0"]
[WhiteElo "1012"]
[BlackElo "854"]
[TimeControl "900+5"]
[EndTime "6:56:05 PDT"]
[Termination "dani_reitas venceu por xeque-mate"]

1. d4 {[%clk 0:15:01.7]} 1... d5 {[%clk 0:15:03.7]} 2. c4 {[%clk 0:15:05.7]}
2... Nc6 {[%clk 0:15:04.2]} 3. e3 {[%clk 0:15:08.9]} 3... dxc4 {[%clk
0:15:07.6]} 4. Bxc4 {[%clk 0:15:12.5]} 4... Be6 {[%clk 0:15:04.8]} 5. Bd3 {[%clk
0:15:05.9]} 5... Nf6 {[%clk 0:14:59.2]} 6. Nf3 {[%clk 0:15:09.5]} 6... Bd5
{[%clk 0:14:45.6]} 7. Nc3 {[%clk 0:15:11.7]} 7... Bxf3 {[%clk 0:14:49]} 8. Qxf3
{[%clk 0:15:14.6]} 8... Nb4 {[%clk 0:14:41.6]} 9. Qe2 {[%clk 0:14:53.4]} 9... e6
{[%clk 0:14:29.1]} 10. O-O {[%clk 0:14:54.8]} 10... Be7 {[%clk 0:14:30.1]} 11.
a3 {[%clk 0:14:19.8]} 11... Nxd3 {[%clk 0:14:31.6]} 12. Qxd3 {[%clk 0:14:23.5]}
12... e5 {[%clk 0:14:32.6]} 13. Rd1 {[%clk 0:14:09.7]} 13... exd4 {[%clk
0:14:34.6]} 14. exd4 {[%clk 0:14:12.9]} 14... O-O {[%clk 0:14:37]} 15. Ne4
{[%clk 0:14:12.3]} 15... Nxe4 {[%clk 0:14:36.3]} 16. Qxe4 {[%clk 0:14:15.2]}
16... Bd6 {[%clk 0:14:33.1]} 17. Qxb7 {[%clk 0:14:16.5]} 17... Qh4 {[%clk
0:14:26.5]} 18. g3 {[%clk 0:14:07.2]} 18... Qg4 {[%clk 0:14:26.5]} 19. Be3
{[%clk 0:13:50.8]} 19... Rab8 {[%clk 0:14:21.1]} 20. Qxa7 {[%clk 0:13:41.8]}
20... Rxb2 {[%clk 0:14:23.7]} 21. Rab1 {[%clk 0:13:40.9]} 21... Re2 {[%clk
0:14:20]} 22. Rb8 {[%clk 0:13:21.2]} 22... Qe4 {[%clk 0:14:17.8]} 23. Rxf8+
{[%clk 0:13:14.7]} 23... Bxf8 {[%clk 0:14:20.8]} 24. Qxc7 {[%clk 0:13:15.5]}
24... Qe8 {[%clk 0:13:53.7]} 25. Qa5 {[%clk 0:13:03.1]} 25... Ra2 {[%clk
0:13:41.3]} 26. Bc1 {[%clk 0:12:21.4]} 26... Qe2 {[%clk 0:13:34.2]} 27. Rf1
{[%clk 0:12:06.3]} 27... g6 {[%clk 0:13:21]} 28. a4 {[%clk 0:12:02.2]} 28... Bg7
{[%clk 0:13:19.9]} 29. Qd8+ {[%clk 0:11:50.8]} 29... Bf8 {[%clk 0:13:17.9]} 30.
a5 {[%clk 0:11:52.9]} 30... Kg7 {[%clk 0:13:04.7]} 31. Bf4 {[%clk 0:11:45.9]}
31... Bb4 {[%clk 0:12:43.4]} 32. Be5+ {[%clk 0:11:33.5]} 32... Kh6 {[%clk
0:12:42.6]} 33. Qh4+ {[%clk 0:11:36.1]} 33... Qh5 {[%clk 0:12:41.8]} 34. Qxh5+
{[%clk 0:11:16.3]} 34... gxh5 {[%clk 0:12:44.6]} 35. Bf4+ {[%clk 0:11:16]} 35...
Kg6 {[%clk 0:12:46.7]} 36. Rd1 {[%clk 0:11:07.1]} 36... Rxa5 {[%clk 0:12:42.8]}
37. d5 {[%clk 0:11:08.3]} 37... f6 {[%clk 0:12:25.8]} 38. d6 {[%clk 0:11:11.2]}
38... Bxd6 {[%clk 0:12:29.3]} 39. Bxd6 {[%clk 0:11:15]} 39... Rf5 {[%clk
0:12:16.8]} 40. Kg2 {[%clk 0:11:17.4]} 40... Kg5 {[%clk 0:12:20.5]} 41. h4+
{[%clk 0:11:20.1]} 41... Kg4 {[%clk 0:12:20.5]} 42. Rd4+ {[%clk 0:11:22.1]}
42... Rf4 {[%clk 0:12:20.7]} 43. Rxf4# {[%clk 0:11:25.3]} 1-0

[Event "Live Chess"]
[Site "Chess.com"]
[Date "2023.09.16"]
[Round "-"]
[White "xadrecarloso"]
[Black "Edson_Zarnelli"]
[Result "1-0"]
[WhiteElo "941"]
[BlackElo "760"]
[TimeControl "900+5"]
[EndTime "6:56:16 PDT"]
[Termination "xadrecarloso venceu por xeque-mate"]

1. d4 {[%clk 0:15:03.1]} 1... d5 {[%clk 0:14:51.1]} 2. Bf4 {[%clk 0:14:59.9]}
2... Nc6 {[%clk 0:14:50.5]} 3. e3 {[%clk 0:15:03.5]} 3... Nf6 {[%clk 0:14:47.8]}
4. Nf3 {[%clk 0:15:07.1]} 4... e6 {[%clk 0:14:30.8]} 5. Bd3 {[%clk 0:15:09.2]}
5... Bd6 {[%clk 0:14:25.1]} 6. Bg3 {[%clk 0:15:11.9]} 6... Bxg3 {[%clk
0:14:28.8]} 7. hxg3 {[%clk 0:15:15.8]} 7... O-O {[%clk 0:14:33.2]} 8. Nbd2
{[%clk 0:14:59.3]} 8... Qe7 {[%clk 0:14:10.7]} 9. Ne5 {[%clk 0:15:01.3]} 9...
Nxe5 {[%clk 0:14:08.2]} 10. dxe5 {[%clk 0:15:05.3]} 10... Nd7 {[%clk 0:14:08.3]}
11. Bxh7+ {[%clk 0:14:48.8]} 11... Kh8 {[%clk 0:14:01.9]} 12. Qh5 {[%clk
0:14:48.1]} 12... g6 {[%clk 0:13:47.7]} 13. Bxg6+ {[%clk 0:14:50]} 13... Kg7
{[%clk 0:13:51.3]} 14. Qh7# {[%clk 0:14:53.8]} 1-0

[Event "Live Chess"]
[Site "Chess.com"]
[Date "2023.09.16"]
[Round "-"]
[White "AlphaKaua10"]
[Black "KBT2007"]
[Result "0-1"]
[WhiteElo "1068"]
[BlackElo "1893"]
[TimeControl "900+5"]
[EndTime "6:57:32 PDT"]
[Termination "KBT2007 venceu por xeque-mate"]

1. d4 {[%clk 0:15:03.6]} 1... d5 {[%clk 0:15:03.6]} 2. c4 {[%clk 0:15:06]} 2...
c6 {[%clk 0:15:07.8]} 3. Nf3 {[%clk 0:15:07.1]} 3... Nf6 {[%clk 0:15:09.9]} 4.
cxd5 {[%clk 0:15:11.3]} 4... cxd5 {[%clk 0:15:13.7]} 5. g3 {[%clk 0:15:15.4]}
5... Bg4 {[%clk 0:15:03.1]} 6. Bg2 {[%clk 0:15:19.1]} 6... e6 {[%clk 0:15:06.5]}
7. O-O {[%clk 0:15:22.5]} 7... Nc6 {[%clk 0:15:00.5]} 8. Ne5 {[%clk 0:15:24.9]}
8... Nxe5 {[%clk 0:15:03.3]} 9. dxe5 {[%clk 0:15:28.9]} 9... Nd7 {[%clk
0:15:07.3]} 10. f3 {[%clk 0:15:28.8]} 10... Bf5 {[%clk 0:15:04.8]} 11. f4 {[%clk
0:15:31.4]} 11... Bc5+ {[%clk 0:15:04.5]} 12. Kh1 {[%clk 0:15:32.8]} 12... O-O
{[%clk 0:15:05.8]} 13. Nc3 {[%clk 0:15:34.4]} 13... Nb6 {[%clk 0:14:53.4]} 14.
a3 {[%clk 0:15:38.1]} 14... a5 {[%clk 0:14:47.8]} 15. Bd2 {[%clk 0:15:38.1]}
15... Nc4 {[%clk 0:14:32.6]} 16. b4 {[%clk 0:15:24.8]} 16... axb4 {[%clk
0:14:30.2]} 17. axb4 {[%clk 0:15:28.7]} 17... Rxa1 {[%clk 0:14:32.6]} 18. Qxa1
{[%clk 0:15:32.6]} 18... Nxd2 {[%clk 0:14:36.4]} 19. bxc5 {[%clk 0:15:35.3]}
19... Nxf1 {[%clk 0:14:40]} 20. Bxf1 {[%clk 0:15:40.2]} 20... Qc7 {[%clk
0:14:34.2]} 21. Qa3 {[%clk 0:15:36.2]} 21... Rc8 {[%clk 0:14:31.1]} 22. Na4
{[%clk 0:15:34.8]} 22... Qa5 {[%clk 0:13:51.3]} 23. Qb3 {[%clk 0:15:06.5]} 23...
Qd2 {[%clk 0:13:07.4]} 24. Qxb7 {[%clk 0:14:51.8]} 24... Be4+ {[%clk 0:13:05.1]}
25. Bg2 {[%clk 0:14:53.1]} 25... Qe1# {[%clk 0:13:08.3]} 0-1

[Event "Live Chess"]
[Site "Chess.com"]
[Date "2023.09.16"]
[Round "-"]
[White "sleepGM86"]
[Black "KiwiDoFbi"]
[Result "0-1"]
[WhiteElo "1111"]
[BlackElo "1272"]
[TimeControl "900+5"]
[EndTime "6:57:32 PDT"]
[Termination "KiwiDoFbi venceu por desistência"]

1. c4 {[%clk 0:15:04]} 1... Nf6 {[%clk 0:15:00]} 2. Nc3 {[%clk 0:15:07.7]} 2...
e6 {[%clk 0:15:04.6]} 3. g3 {[%clk 0:15:09.8]} 3... Bb4 {[%clk 0:15:05.9]} 4. a3
{[%clk 0:15:11.5]} 4... Bc5 {[%clk 0:14:56.7]} 5. e3 {[%clk 0:15:14.6]} 5... d5
{[%clk 0:14:59.3]} 6. d4 {[%clk 0:15:10.2]} 6... Be7 {[%clk 0:14:59.4]} 7. cxd5
{[%clk 0:15:12.3]} 7... Nxd5 {[%clk 0:15:00.7]} 8. Nxd5 {[%clk 0:15:12.1]} 8...
Qxd5 {[%clk 0:15:03.9]} 9. Nf3 {[%clk 0:15:17]} 9... b6 {[%clk 0:15:04.1]} 10.
Bg2 {[%clk 0:15:20.4]} 10... Bb7 {[%clk 0:15:08.4]} 11. O-O {[%clk 0:15:24.1]}
11... Nc6 {[%clk 0:15:07]} 12. Ne5 {[%clk 0:15:23.6]} 12... Qd6 {[%clk
0:14:56.9]} 13. Nxc6 {[%clk 0:15:24.4]} 13... Bxc6 {[%clk 0:15:00.1]} 14. e4
{[%clk 0:15:16.9]} 14... O-O {[%clk 0:14:43.9]} 15. d5 {[%clk 0:15:20.6]} 15...
exd5 {[%clk 0:14:46.8]} 16. exd5 {[%clk 0:15:23.6]} 16... Bb5 {[%clk 0:14:37.9]}
17. Re1 {[%clk 0:15:20.1]} 17... Rad8 {[%clk 0:14:34]} 18. Bf4 {[%clk
0:15:23.1]} 18... Qd7 {[%clk 0:14:35.8]} 19. a4 {[%clk 0:15:08.2]} 19... Bc4
{[%clk 0:14:32.3]} 20. b3 {[%clk 0:15:06.6]} 20... Bxd5 {[%clk 0:14:28.5]} 21.
Bxd5 {[%clk 0:15:07.9]} 21... Bb4 {[%clk 0:14:17.4]} 22. Bd2 {[%clk 0:14:29.2]}
22... Bxd2 {[%clk 0:14:17.6]} 23. Qxd2 {[%clk 0:14:33.3]} 23... Qxd5 {[%clk
0:14:21.8]} 24. Qxd5 {[%clk 0:14:34.9]} 24... Rxd5 {[%clk 0:14:19.3]} 25. Re7
{[%clk 0:14:37.8]} 25... Rc8 {[%clk 0:14:17.9]} 26. Rae1 {[%clk 0:14:22.8]} 0-1

[Event "Live Chess"]
[Site "Chess.com"]
[Date "2023.09.16"]
[Round "-"]
[White "ArthurMPRJ"]
[Black "Riquelme_Leonardo"]
[Result "1-0"]
[WhiteElo "1337"]
[BlackElo "1684"]
[TimeControl "900+5"]
[EndTime "6:57:45 PDT"]
[Termination "ArthurMPRJ venceu por desistência"]

1. d4 {[%clk 0:15:02.8]} 1... d5 {[%clk 0:15:04.1]} 2. c4 {[%clk 0:15:05.8]}
2... dxc4 {[%clk 0:15:08.1]} 3. e3 {[%clk 0:15:08.9]} 3... Nf6 {[%clk
0:15:12.3]} 4. Bxc4 {[%clk 0:15:12.5]} 4... Bf5 {[%clk 0:15:16.8]} 5. Qb3 {[%clk
0:15:12.3]} 5... e6 {[%clk 0:15:14.6]} 6. Qxb7 {[%clk 0:15:11.3]} 6... Nbd7
{[%clk 0:15:18.2]} 7. Nc3 {[%clk 0:15:06.9]} 7... Bd6 {[%clk 0:15:20.6]} 8. Qb3
{[%clk 0:15:01.8]} 8... Rb8 {[%clk 0:15:19.9]} 9. Qd1 {[%clk 0:15:02.3]} 9...
O-O {[%clk 0:15:18]} 10. Nf3 {[%clk 0:15:06.6]} 10... c5 {[%clk 0:15:19.6]} 11.
O-O {[%clk 0:15:05.6]} 11... Qc7 {[%clk 0:15:20.2]} 12. Nb5 {[%clk 0:14:58.4]}
12... Qc6 {[%clk 0:15:19.8]} 13. Nxd6 {[%clk 0:14:46]} 13... Qxd6 {[%clk
0:15:24.7]} 14. dxc5 {[%clk 0:14:38.8]} 14... Qxc5 {[%clk 0:15:24.5]} 15. Bb3
{[%clk 0:14:38.9]} 15... Ne5 {[%clk 0:15:22.7]} 16. Nxe5 {[%clk 0:14:35.6]}
16... Qxe5 {[%clk 0:15:25.7]} 17. Bd2 {[%clk 0:14:12.6]} 17... Qxb2 {[%clk
0:15:27.2]} 18. Qc1 {[%clk 0:14:03.5]} 18... Qe5 {[%clk 0:15:18.5]} 19. Bc3
{[%clk 0:14:03.1]} 19... Qc7 {[%clk 0:15:12.9]} 20. Bxf6 {[%clk 0:13:08.3]}
20... Qxc1 {[%clk 0:15:15.7]} 21. Raxc1 {[%clk 0:13:11.5]} 21... gxf6 {[%clk
0:15:19.5]} 22. Rc7 {[%clk 0:13:15.7]} 22... a5 {[%clk 0:15:15]} 23. Rfc1 {[%clk
0:13:09.2]} 23... Rfd8 {[%clk 0:15:11.8]} 24. h3 {[%clk 0:12:35.4]} 24... Bg6
{[%clk 0:15:08.7]} 25. Ra7 {[%clk 0:12:29.8]} 25... Ra8 {[%clk 0:15:10.2]} 26.
Rcc7 {[%clk 0:12:31.9]} 26... Kf8 {[%clk 0:15:08.4]} 27. f4 {[%clk 0:12:16.9]}
27... f5 {[%clk 0:14:39.3]} 28. Rxa8 {[%clk 0:12:00.4]} 28... Rxa8 {[%clk
0:14:41.3]} 29. Kf2 {[%clk 0:12:02]} 29... a4 {[%clk 0:14:42.5]} 30. Bc4 {[%clk
0:12:04.2]} 30... Rb8 {[%clk 0:14:34.4]} 31. Bd3 {[%clk 0:11:39.6]} 31... Rb2+
{[%clk 0:14:29.2]} 32. Rc2 {[%clk 0:11:43.3]} 32... Rxc2+ {[%clk 0:14:32.2]} 33.
Bxc2 {[%clk 0:11:46.8]} 33... a3 {[%clk 0:14:35.7]} 34. Ke2 {[%clk 0:11:50.8]}
34... Bh5+ {[%clk 0:14:36.4]} 35. Kd3 {[%clk 0:11:51.6]} 35... Ke7 {[%clk
0:14:35.5]} 36. Kc3 {[%clk 0:11:55.9]} 36... Be2 {[%clk 0:14:39.8]} 37. Bd3
{[%clk 0:09:57.3]} 37... Bxd3 {[%clk 0:13:14.3]} 38. Kxd3 {[%clk 0:10:01]} 38...
Kd6 {[%clk 0:13:18.7]} 39. Kc3 {[%clk 0:09:58]} 39... Kc5 {[%clk 0:13:22.2]} 40.
Kb3 {[%clk 0:10:01.4]} 40... Kb5 {[%clk 0:13:24.3]} 41. Kxa3 {[%clk 0:10:05.2]}
41... f6 {[%clk 0:13:26]} 42. Kb3 {[%clk 0:10:09]} 42... e5 {[%clk 0:13:28]} 43.
a4+ {[%clk 0:10:03.2]} 43... Kc5 {[%clk 0:13:20]} 44. a5 {[%clk 0:10:01.7]}
44... Kb5 {[%clk 0:13:22.9]} 45. a6 {[%clk 0:10:04.1]} 1-0